Cogmind - Beta 16.1 @@@ ROGUE MODE // 2026.03.24 @ 23:49:11 Player: Godsword Result: Self-destructed Performance ------------- Evolutions (2) 1000 Regions Visited (3) 600 Robots Destroyed (10) 50 Value Destroyed (111) 111 Prototype IDs (2) 40 Alien Tech Used (0) 0 Bonus (0) 0 TOTAL SCORE: 1801 Bonus ------- None Cogmind --------- Core Integrity 480/550 Matter 285/300 Energy 100/100 System Corruption 0% Temperature Cool (0) Movement Flying (34) Location -8/Materials Parts ------- > --- POWER (1) -------- (None) > --- PROPULSION (4) --- Flight Unit VTOL Module > --- UTILITY (4) ------ Sensor Array Signal Interpreter Improved Terrain Scanner Terrain Scan Processor > --- WEAPON (2) ------- Katana > --- INVENTORY (5) ---- Nuclear Core ECM Suite Hacking Suite Katana Peak State ------------ > --- POWER ------------ Ion Engine > --- PROPULSION ------- VTOL Module VTOL Module VTOL Module VTOL Module > --- UTILITY ---------- Sensor Array Signal Interpreter Improved Terrain Scanner Terrain Scan Processor > --- WEAPON ----------- Plasma Cutter Katana > --- INVENTORY -------- Nuclear Core Flight Unit ECM Suite Hacking Suite Katana [Rating: 22] Favorites ----------- Power Ion Engine Engine Ion Engine Propulsion VTOL Module Wheel Compact Wheel Flight Unit VTOL Module Utility Improved Terrain Scanner Device Improved Terrain Scanner Storage Small Storage Unit Processor Terrain Scan Processor Weapon Heavy Hammer Ballistic Gun Assault Rifle Special Weapon Plasma Cutter Impact Weapon Heavy Hammer Slashing Weapon Katana Build | -11 -10 -9 -8 ------- Run | Yrd Mat Mat Mat Slots Evolved 4 | . . 2 2 Power . | . . . . Propulsion 2 | . . 2 . Utility 2 | . . . 2 Weapon . | . . . . Parts Attached 20 | 7 3 6 4 Power 2 | 1 1 . . Engine 2 | 1 1 . . Core . | . . . . Reactor . | . . . . Propulsion 7 | 2 . 4 1 Treads . | . . . . Leg . | . . . . Wheel 2 | 2 . . . Hover . | . . . . Flight 5 | . . 4 1 Utility 5 | 2 . . 3 Device 2 | 1 . . 1 Storage 1 | 1 . . . Processor 2 | . . . 2 Hackware . | . . . . Protection . | . . . . Artifact . | . . . . Weapon 6 | 2 2 2 . Energy Gun . | . . . . Energy Cannon . | . . . . Ballistic Gun 2 | 2 . . . Ballistic Cannon . | . . . . Launcher . | . . . . Special Weapon 1 | . . 1 . Impact Weapon 2 | . 2 . . Slashing Weapon 1 | . . 1 . Piercing Weapon . | . . . . Special Melee Weapon . | . . . . Unidentified Prototypes . | . . . . Parts Lost 8 | . 3 . 5 Power 2 | . 1 . 1 Propulsion 5 | . 2 . 3 Utility . | . . . . Weapon 1 | . . . 1 Highest Loss Streak 4 | . 3 . 4 To Critical Strikes . | . . . . Average Backups 5 | 1 7 6 5 Power . | . 1 . . Propulsion 2 | . 4 1 . Utility 2 | . 1 3 2 Weapon . | . . 1 1 Tool/Special . | . . . . Unused Backups 13 | . 6 1 6 Power 1 | . . . 1 Propulsion 4 | . 4 . . Utility 5 | . 2 . 3 Weapon 2 | . . . 2 Tool/Special 1 | . . 1 . Average Slot Usage (%) 90 | . 87 93 93 Engine 10 | . 12 10 9 Wheel 11 | . 25 . . Flight 21 | . . 42 35 Device 14 | . 14 11 17 Storage 9 | . 14 11 . Processor 4 | . . . 17 Special Weapon 3 | . . 6 4 Impact Weapon 10 | . 18 9 . Slashing Weapon 3 | . . 2 9 Peak Build Rating 22 | 9 12 19 22 Average Rating 13 | 7 10 17 20 On Entrance 9 | . 9 9 19 Avg Prop Armor Cover (%) 5 | 5 . . . Naked Turns . | . . . . Heaviest Build 15 | 14 15 15 10 Greatest Support 26 | 26 26 16 16 Greatest Overweight (x) 3 | 2 3 . . Average Overweight (x) . | . . . . Largest Inventory Capacity 8 | 8 8 8 8 Average Capacity 7 | 7 8 8 5 Most Carried 8 | 7 8 8 7 Average Carried 5 | 1 7 6 4 Final Capacity 8 | 8 8 8 5 Final Carried 8 | 7 8 8 4 Class Distribution -------------------- 55% | Mutant 23% | Scout 21% | Sprinter Dominant Class ---------------- Mutant | -10/Materials Sprinter | -9/Materials Scout | -8/Materials Resources | -11 -10 -9 -8 ----------- Run | Yrd Mat Mat Mat Matter Collected 424 | 318 30 76 . Remotely . | . . . . Salvage Created 218 | 115 103 . . Parts 17 | 9 8 . . Haulers Intercepted . | . . . . Recyclers Shooed . | . . . . Parts Field Recycled . | . . . . Retrieved Matter . | . . . . Parts Self-Destructed . | . . . . Prevented . | . . . . Parts Restored . | . . . . Kills | -11 -10 -9 -8 ------- Run | Yrd Mat Mat Mat Combat Hostiles Destroyed 6 | . 6 . . Melee 4 | . 4 . . Classes Destroyed 4 | 2 2 . . Tunneler 3 | 3 . . . Recycler 1 | 1 . . . Swarmer 5 | . 5 . . Grunt 1 | . 1 . . Best Kill Streak 4 | 4 3 . . Combat Bots Only 3 | . 3 . . Max Kills in Single Turn 1 | 1 1 . . Gunslinging . | . . . . Exploded . | . . . . Melee 1 | . 1 . . Uniques/NPCs Destroyed . | . . . . Combat | -11 -10 -9 -8 -------- Run | Yrd Mat Mat Mat Hostile Shots Fired 104 | . 62 10 32 Missed 42 | . 20 6 16 Hits 62 | . 42 4 16 Projectile 62 | . 42 4 16 Critical Strikes 1 | . 1 . . Damage Taken 717 | . 382 53 282 Core 293 | . 190 33 70 Absorbed by Shields . | . . . . Core Remaining (%) 71 | 100 24 91 . Volleys Fired 12 | 12 . . . Largest 2 | 2 . . . Hottest 40 | 40 . . . Shots Fired 24 | 24 . . . Gun 24 | 24 . . . Cannon . | . . . . Launcher . | . . . . Special . | . . . . Kinetic 24 | 24 . . . Thermal . | . . . . Explosive . | . . . . Electromagnetic . | . . . . Robot Hit Streak 3 | 3 . . . Robot Miss Streak 2 | 2 . . . Penetration Max . | . . . . Secondary Targets . | . . . . Shots Hit Robots 26 | 11 11 . 4 Core Hits 11 | 6 4 . 1 Critical Kills . | . . . . Critical Parts Destroyed . | . . . . Critical Strikes . | . . . . Melee Attacks 43 | . 23 10 10 Impact 32 | . 23 9 . Slashing 11 | . . 1 10 Piercing . | . . . . Sneak Attacks 1 | . . . 1 Combat Hostiles 1 | . . . 1 Follow-up Attacks 1 | . 1 . . Damage Inflicted 718 | 144 393 . 181 Guns 144 | 144 . . . Cannons . | . . . . Explosions . | . . . . Melee 574 | . 393 . 181 Ramming . | . . . . Kinetic 144 | 144 . . . Thermal . | . . . . Explosive . | . . . . Electromagnetic . | . . . . Impact 393 | . 393 . . Slashing 181 | . . . 181 Piercing . | . . . . Highest Corruption 1 | . . 1 . Average Corruption 1 | . . 1 . Corruption Purged . | . . . . Corruption Blocked . | . . . . Effects 3 | . . 3 . Message Errors 2 | . . 2 . Matter Fused 1 | . . 1 . Overload Shots . | . . . . Overflow Damage 112 | . 77 . 35 Projectiles . | . . . . Explosions . | . . . . Melee 112 | . 77 . 35 Knockbacks 1 | . 1 . . Impact 1 | . 1 . . Kinetic . | . . . . Secondary . | . . . . Self-Inflicted Damage . | . . . . Shots . | . . . . Rammed . | . . . . Targets Rammed . | . . . . Kicked . | . . . . Crushed . | . . . . Highest Temperature 7 | . . 6 7 Average Temperature 4 | . . 3 7 Received Heat Transfer 201 | . 54 21 126 Siege Activations . | . . . . Martial Activations . | . . . . Shielding Activations . | . . . . Robots Disrupted . | . . . . Combat Hostiles . | . . . . Robots Corrupted 2 | . 2 . . Combat Hostiles 2 | . 2 . . Parts Fried 1 | . 1 . . Impact Corruptions 6 | . 6 . . Robots Melted . | . . . . Combat Hostiles . | . . . . Parts Melted . | . . . . Heat Transferred . | . . . . Parts Sabotaged . | . . . . Parts Stolen . | . . . . Parts Stripped . | . . . . Power Chain Reactions . | . . . . Alert | -11 -10 -9 -8 ------- Run | Yrd Mat Mat Mat Maximum Alert Level . | . . . . Low Security (%) 100 | 100 100 100 100 Level 1 . | . . . . Level 2 . | . . . . Level 3 . | . . . . Level 4 . | . . . . Level 5 . | . . . . High Security . | . . . . Max Security . | . . . . Peak Influence 186 | 10 119 91 186 Initial 41 | . . 41 38 Average 42 | 2 25 38 96 Influence Increases 577 | 20 194 130 233 Destroy 0b10 Robot/C 120 | . 120 . . Destroy 0b10 Robot/NC 20 | 20 . . . Destroy Leader 30 | . 30 . . Successful Hack 32 | . 11 17 4 Destroy Structure 15 | . 3 8 4 Partial Spotted 135 | . . 60 75 Lose Combat Pursuer 225 | . 30 45 150 Influence Decreases 446 | 20 95 138 193 Entered New Map 111 | . . 58 53 Time Decay 255 | 20 65 80 90 Lost Part 80 | . 30 . 50 Squads Dispatched 6 | . 1 3 2 Investigation . | . . . . Extermination . | . . . . Reinforcement 6 | . 1 3 2 Assault . | . . . . Garrison . | . . . . Intercept . | . . . . Searches Triggered . | . . . . Construction Impeded . | . . . . Haulers Reinforced . | . . . . Active Scanning Responses . | . . . . Cargo Convoy Interrupts . | . . . . Stealth | -11 -10 -9 -8 --------- Run | Yrd Mat Mat Mat Distress Signals 4 | . . 3 1 Communications Jammed . | . . . . Distress Signals . | . . . . Times Spotted 47 | . 11 16 20 Peak Tracking Total 12 | . 6 9 12 Tactical Retreats 5 | . 1 2 2 Traps | -11 -10 -9 -8 ------- Run | Yrd Mat Mat Mat Traps Triggered . | . . . . Indirectly . | . . . . Trap Hack Attempts . | . . . . Triggered . | . . . . Disarmed . | . . . . Reprogrammed . | . . . . Reused . | . . . . Traps Extracted . | . . . . Installed . | . . . . Triggered . | . . . . Machines | -11 -10 -9 -8 ---------- Run | Yrd Mat Mat Mat Machines Disabled . | . . . . Max in Single Turn . | . . . . Machines Repaired . | . . . . Machines Dismantled . | . . . . Machines Sabotaged . | . . . . Overloaded Fab Kills . | . . . . Hacking | -11 -10 -9 -8 --------- Run | Yrd Mat Mat Mat Machines Accessed 4 | . 2 1 1 Terminals 4 | . 2 1 1 Fabricators . | . . . . Repair Stations . | . . . . Recycling Units . | . . . . Scanalyzers . | . . . . Garrison Access . | . . . . Total Hacks 15 | . 4 10 1 Successful 11 | . 3 7 1 Failed 4 | . 1 3 . Catastrophic . | . . . . Database Lockouts . | . . . . Manual . | . . . . Terminals 15 | . 4 10 1 Fabricators . | . . . . Repair Stations . | . . . . Recycling Units . | . . . . Scanalyzers . | . . . . Garrison Access . | . . . . Terminal Hacks 11 | . 3 7 1 Record 2 | . . 2 . Prototype ID Bank 1 | . . 1 . Branch Access Points 1 | . 1 . . Emergency Access Points 2 | . 1 . 1 Patrol Status 1 | . . 1 . Transport Status 1 | . . 1 . Recall Investigation 1 | . . 1 . Zone Layout 2 | . 1 1 . Fabricator Hacks . | . . . . Repair Station Hacks . | . . . . Recycling Unit Hacks . | . . . . Scanalyzer . | . . . . Garrison Access Hacks . | . . . . Unauthorized Hacks . | . . . . Terminals . | . . . . Fabricators . | . . . . Repair Stations . | . . . . Recycling Units . | . . . . Scanalyzers . | . . . . Garrison Access . | . . . . Data Cores Recovered . | . . . . Used . | . . . . Hacking Detections 2 | . 1 1 . Full Trace Events 1 | . . 1 . Feedback Events 1 | . . 1 . Corruption 1 | . . 1 . Feedback Blocked . | . . . . Robot Schematics Acquired . | . . . . Robots Built . | . . . . Authchips . | . . . . Time . | . . . . Total Robot Build Rating . | . . . . Part Schematics Acquired . | . . . . Parts Built . | . . . . Authchips . | . . . . Time . | . . . . Total Part Build Rating . | . . . . Part Studies Acquired . | . . . . Parts Repaired . | . . . . Time . | . . . . Parts Recycled . | . . . . Recycled Matter . | . . . . Retrieved Matter . | . . . . Retrieved Components . | . . . . Parts Scanalyzed . | . . . . Part Schematics Acquired . | . . . . Parts Damaged . | . . . . Bothacking | -11 -10 -9 -8 ------------ Run | Yrd Mat Mat Mat Used RIF Installer . | . . . . Robots Hacked . | . . . . Non-combat . | . . . . Combat . | . . . . Robot Hacks Applied . | . . . . Relay Couplers Released . | . . . . Fabnet Peak Effective % . | . . . . Robots Rewired . | . . . . Allies Hacked . | . . . . Hacks Repelled . | . . . . Allies | -11 -10 -9 -8 -------- Run | Yrd Mat Mat Mat Total Allies . | . . . . Largest Group . | . . . . Highest-Rated Group . | . . . . Highest-Rated Ally . | . . . . Total Orders . | . . . . Ally Attacks . | . . . . Total Damage . | . . . . Kills . | . . . . Allies Corrupted . | . . . . Allies Melted . | . . . . Intel | -11 -10 -9 -8 ------- Run | Yrd Mat Mat Mat Active Infowar (turns) 652 | 13 289 167 183 Sensors 178 | . . . 178 Terrain 652 | 13 289 167 183 Robot Analysis Total . | . . . . Derelict Logs Recovered . | . . . . Drone Launches . | . . . . Drone Recoveries . | . . . . Exploration | -11 -10 -9 -8 ------------- Run | Yrd Mat Mat Mat Turns Passed 753 | 114 289 167 183 Spaces Moved 946 | 59 236 327 324 Core 13 | 10 3 . . Treads . | . . . . Legs . | . . . . Wheels 282 | 49 233 . . Hover . | . . . . Flight 651 | . . 327 324 Fastest Speed 26 | 50 90 26 26 Average Speed 46 | 92 91 26 26 Slowest Speed 200 | 150 200 26 30 Overloaded Moves . | . . . . Propulsion Burnouts . | . . . . Robots Hopped . | . . . . Potential Cave-ins . | . . . . Cave-ins Triggered . | . . . . Exploration Rate (%) 31 | 3 44 34 45 Regions Visited 3 Branch Regions . Pre-discovered Areas . | . . . . Known Exits Taken . | . . . . Unknown Exits Taken 3 | 1 1 1 . Scrap Searched . | . . . . Spaces Dug 16 | . 3 9 4 Terrain Destroyed 16 | . 3 9 4 Melee 16 | . 3 9 4 Projectile . | . . . . AOE . | . . . . Terrain Rammed . | . . . . Walls Destroyed . | . . . . Machines Disabled . | . . . . Actions | -11 -10 -9 -8 --------- Run | Yrd Mat Mat Mat Total 1167 | 93 275 391 408 Wait 112 | 9 . 38 65 Move 943 | 58 235 326 324 Hop . | . . . . Pick Up 23 | 7 8 6 2 Fast Attach 10 | 7 1 2 . Attach 10 | . 1 5 4 Detach 1 | . . 1 . Swap 1 | . 1 . . Drop 14 | . 8 3 3 Fire 12 | 12 . . . Melee 41 | . 21 10 10 Ram . | . . . . Kick . | . . . . Crush . | . . . . Escape Stasis . | . . . . Rewire . | . . . . Trap . | . . . . Miscellaneous . | . . . . Route ------- -11/Scrapyard -10/Materials (discovered 2 exits: *Mat / Min) -9/Materials -8/Materials History --------- Turn | Location | Event 16 | -11/Scrapyard | Discovered new exit (range 16) 115 | -11/Scrapyard | Entered Materials 317 | -10/Materials | Identified exit to Mines 320 | -10/Materials | Build established: Mutant 346 | -10/Materials | Discovered new exit (range 11) 382 | -10/Materials | Core integrity fell below 50% 404 | -10/Materials | Entered another Materials area 404 | -9/Materials | Evolved 2 slots: Propulsion x2 429 | -9/Materials | Lost 3 parts (1p2n) 570 | -9/Materials | Discovered new exit (range 4) 571 | -9/Materials | Entered another Materials area 571 | -8/Materials | Evolved 2 slots: Utility x2 754 | -8/Materials | Self-destructed Last Messages --------------- Map updated. 00586_ Acquired Hacking Suite. 00594_ Dropped Grenade Launcher. 00595_ Acquired Nuclear Core. 00626_ ALERT: Hostiles spotted, dispatching reinforcements to Terminal M005. 00646_ Sneak attack on G-50 Soldier. 00646_ Destroyed Adv. Heat Sink. 00650_ Plasma Cutter destroyed. 00655_ W-25 Informer sends out distress signal. 00655_ K-01 Serf collects debris. 00659_ O-16 Technician: "IFF HANDSHAKE FAILED. SECURING TERMINAL." 00666_ ALERT: Hostiles spotted, dispatching reinforcements to Terminal M001. 00728_ K-01 Serf collects debris. 00735_ K-01 Serf cleans the Electrolysis Chamber. 00740_ VTOL Module destroyed. 00752_ Ion Engine destroyed. Map ----- +----------------------------------------------------+ | ????????????????????????????????????? | | ?????????????#??????????????????????? | | ????????????????????????????????????? | | #????###????????????????????????????? | | ??? """ ???????????????????????????? | | #???"""""???????????????????????????? | | #?? """""???????????????????????????? | | #?? """"" #?????????????????????????? | | ## """ #?????????????????????????? | | # #?????????????????????????? | | + #?????????????????#???????? | | # #?????????????????#???????? | | ## #??????#??????????????????? | | #?########??#????#?# ?#???????????? | | #??#??????#?##?????? ?????????????#? | | #???##??#???##?? ? ? ? ?""??????? | | #????????????### ??? +? "????????? | | #?????????###??? ? ? ? #? "?"??????? | | #?#?#????#######? ? #? ??? ?????? | | ##???????#?##?##? ? ? ##########??? | | ????????###?##?##??## # #??? | | ?#???????##?#####?#?# # #??? | | ##################### #g #??? | | # ##?? | | # !!! ###? | | g g g@ !!! #### | | g # !! #??? | | ##########+##### # g ##?? | | ####+########## ##X# ###? | | ? """?##?### """ ## ######+###??# | | = "T" #?#??# """ # ##### ###?## | | #??### x""" + ###??? | | """ #?#??# # ##### ##???? | | """ # ? # ##+###### ##??#? | | """ [! #?#?######### ###X##?##? | | """ !! #????###????# ### #??#?# | | ??? ####??##?##?# ### #?##?? | | ???+#######?#?##?##?## ### ##???? | | ???????##???##????##?# ## ##??? | | ???????#????#??####?## + #???? | | ??????????##??#??#???# ## #???# | | ?????????????#?#?#?#?############???? | | ??????????? ???##?#?#?#???###??????## | | ???????????? ??#????####??#?#????#??? | | ?????????????#??######??????????????? | | ???????????????#??##??#?#???#???????? | | ???????????????????????????????????#? | | ????????????????????????????#?????#?? | | ?????????????????#??????????????????? | | ????????????????????????????????????? | +----------------------------------------------------+ Best States ------------- Heat Dissipation 31 Energy Generation 10 Energy Capacity 250 Matter Stores 300 Matter Capacity 300 Sight Range 16 Robot Scan Range 14 Terrain Scan Range 16 Terrain Scan Density 85 Evasion (%) 64 Item Schematics ----------------- None Robot Schematics ------------------ None Fabricated ------------ Nothing Repaired ---------- Nothing Studied --------- None Alien Tech Used ----------------- None Achievements -------------- None Challenges ------------ None Game ------ Seed godsword Manual? 1 Play Time 00:17:50 Cumulative 26.6 hours Start 2026.03.24 @ 23:32:30 End 2026.03.24 @ 23:49:11 Sessions 1 Manual Loads 0 Difficulty Rogue Special Mode None Game No. 74 Rogue 74 Adventurer 0 Explorer 0 Win Type - Total 2 Types 2/0/0/0/0/0/0/0/0/0 Lore% 29 Gallery% 26 Achievement% 21 Wizard Run 0 Options --------- Layout 1 ASCII 0 Keyboard 0 Movement Mouse Keybinds 0 Fullscreen 1 Font 16/SmallcapsGlow Map View 50x40 Zoom Use 0% Tactical HUD 1 Map Filters NONE Filters NONE Steam SD RUN: 5da679a0-54a9-427f-8bfe-ac533cd89577